fUST/lending_fUST_20250824
["ID","MTS","AMOUNT","RATE_DAILY","PERIOD"]
[381085781,1756020637839,-512.13917913,0.00029573,5]
[381085783,1756020637848,-500.0,0.00029573,5]
[381085784,1756020637858,-444.30390894,0.00029573,5]
[381085785,1756020637867,-220.91,0.00029587,3]
[381085786,1756020637876,-662.77,0.00029587,3]
[381085787,1756020637885,-513.4921152,0.00029596,10]
[381085788,1756020637895,-202.20021287,0.00029596,10]
[381085789,1756020637904,-257.37976504,0.00029596,2]
[381085790,1756020637913,-404.16282799,0.00029596,2]
[381085791,1756020637923,-500.0,0.00029596,2]
[381085792,1756020637932,-500.0,0.00029596,2]
[381085793,1756020637941,-154.45989617,0.00029596,2]
[381085794,1756020637951,-500.0,0.00029596,2]
[381085795,1756020637960,-477.19002854,0.00029596,2]
[381085797,1756020637970,-331.93444154,0.00029596,2]
[381085798,1756020637979,-500.0,0.00029596,2]
[381085799,1756020637988,-500.0,0.00029596,2]
[381085800,1756020637998,-500.0,0.00029596,2]
[381085801,1756020638007,-500.0,0.00029596,2]
[381085802,1756020638016,-500.0,0.00029596,2]
[381085803,1756020638026,-500.0,0.00029596,2]
[381085804,1756020638036,-500.0,0.00029596,2]
[381085805,1756020638045,-500.0,0.00029596,2]
[381085806,1756020638055,-502.31289663,0.00029596,2]
[381085807,1756020638064,-303.51427525,0.00029596,2]
[381085808,1756020638073,-500.0,0.00029596,2]
[381085809,1756020638083,-500.0,0.00029596,2]
[381085810,1756020638092,-500.0,0.00029596,2]
[381085811,1756020638101,-500.0,0.00029596,2]
[381085812,1756020638110,-500.0,0.00029596,2]
[381085813,1756020638120,-500.0,0.00029596,2]
[381085814,1756020638129,-332.38915466,0.00029596,2]
[381085815,1756020638139,-500.0,0.00029596,2]
[381085816,1756020638149,-500.0,0.00029596,2]
[381085817,1756020638159,-500.0,0.00029596,2]
[381085818,1756020638168,-500.0,0.00029596,2]
[381085819,1756020638178,-492.43885795,0.00029596,2]
[381085820,1756020638187,-500.0,0.00029596,2]
[381085821,1756020638196,-300.0,0.00029596,2]
[381085822,1756020638206,-550.25273555,0.00029596,2]
[381085823,1756020638215,-500.0,0.00029596,2]
[381085824,1756020638224,-500.0,0.00029596,2]
[381085825,1756020638234,-500.0,0.00029596,2]
[381085826,1756020638243,-500.0,0.00029596,2]
[381085827,1756020638252,-500.0,0.00029596,2]
[381085828,1756020638261,-500.0,0.00029596,2]
[381085829,1756020638271,-500.0,0.00029596,2]
[381085830,1756020638280,-500.0,0.00029596,2]
[381085831,1756020638290,-254.08441498,0.00029596,2]
[381085832,1756020638299,-500.0,0.00029596,2]
[381085833,1756020638308,-500.0,0.00029596,2]
[381085834,1756020638318,-500.0,0.00029596,2]
[381085835,1756020638328,-500.0,0.00029596,2]
[381085836,1756020638337,-473.25087757,0.00029596,2]
[381085837,1756020638347,-500.0,0.00029596,2]
[381085838,1756020638356,-500.0,0.00029596,2]
[381085839,1756020638366,-500.0,0.00029596,2]
[381085840,1756020638375,-500.0,0.00029596,2]
[381085841,1756020638385,-500.0,0.00029596,2]
[381085842,1756020638394,-500.0,0.00029596,2]
[381085843,1756020638404,-250.0,0.00029596,2]
[381085844,1756020638413,-500.0,0.00029596,2]
[381085845,1756020638423,-500.0,0.00029596,2]
[381085846,1756020638432,-500.0,0.00029596,2]
[381085847,1756020638441,-500.0,0.00029596,2]
[381085848,1756020638451,-500.0,0.00029596,2]
[381085849,1756020638462,-500.0,0.00029596,2]
[381085850,1756020638471,-500.0,0.00029596,2]
[381085851,1756020638481,-499.99999999,0.00029596,2]
[381085852,1756020638490,-1309518.09832825,0.00029597,20]
[381085853,1756020638500,-15241.06026139,0.00029597,2]
[381085854,1756020638510,-21396.85944116,0.00029597,2]
[381085856,1756020638520,-7317.09104212,0.00029597,30]
[381085857,1756020638529,-200.0,0.00029597,10]
[381085858,1756020638541,-200.0,0.00029597,10]
[381085859,1756020638550,-208.238992,0.00029597,10]
[381085860,1756020638560,-8589.39,0.000296,2]
[381085861,1756020638569,-194.96,0.000296,7]
[381085862,1756020638578,-495.01,0.000296,7]
[381085863,1756020638587,-647.66914228,0.0003,4]
[381085864,1756020638596,-587.0,0.0003045,2]
[381085865,1756020638605,-289.49733825,0.00030855,2]
[381085866,1756020638615,-441.82,0.00030957,3]
[381085867,1756020638624,-299.00139862,0.00031123,15]
[381085868,1756020638634,-500.0,0.00031765,5]
[381085869,1756020638643,-500.0,0.00032313,5]
[381085870,1756020638653,-299.00139887,0.00032849,19]
[381085871,1756020638662,-299.00139862,0.00032849,19]
[381085872,1756020638672,-682.0,0.00032954,2]
[381085873,1756020638681,-3077.68296144,0.0003298,2]
[381085874,1756020638690,-299.00139862,0.00034576,23]
[381085875,1756020638699,-900.28946878,0.0003476,2]
[381085876,1756020638708,-250.0,0.00035287,2]
[381085877,1756020638718,-299.00139862,0.00036302,26]
[381085878,1756020638727,-865.18225947,0.00036305,2]
[381085879,1756020638736,-1156.83136364,0.00036875,2]
[381085880,1756020638745,-973.0,0.00037345,2]
[381085881,1756020638754,-176.014,0.00037345,2]
[381085882,1756020638764,-299.00139862,0.00038029,30]
[381085883,1756020638773,-4001.57,0.000386,120]
[381085884,1756020638782,-215.99145658,0.00038634,2]
[381085885,1756020638792,-217.07852671,0.00038672,2]
[381085886,1756020638801,-36580.4148214,0.00038752,3]
[381085887,1756020638811,-5527.64952672,0.00038752,3]
[381085888,1756020638821,-160.0,0.00038752,3]
[381085889,1756020638831,-844.67759735,0.00038752,3]
[381085890,1756020638841,-160.0,0.00038752,3]
[381085891,1756020638850,-199.0,0.00038761,120]
[381085892,1756020638859,-199.0,0.00038761,120]
[381085893,1756020638869,-1100.21,0.00038761,120]
[381085894,1756020638878,-31737.90194599,0.00038762,2]
[381085917,1756020639850,-358.26188949,0.00029596,2]
[381085918,1756020639860,-136.61320663,0.00038762,2]
[381085943,1756020705249,318.93482512,0.00020763,2]
[381085944,1756020705344,318.93482512,0.0002249,2]
[381085945,1756020705397,318.93482512,0.00024216,2]
[381085949,1756020871299,287.04134272,0.00020763,2]
[381085950,1756020871342,251.16117502,0.0002249,2]
[381085951,1756020875462,2000.0,0.00025001,2]
[381085952,1756020913708,288.0,0.00025001,2]
[381085954,1756021035014,398.66853152,0.00020763,2]
[381085955,1756021035074,398.66853152,0.0002249,2]
[381085956,1756021035226,398.66853152,0.00024216,2]
[381085980,1756021198999,299.00139879,0.00020763,2]
[381085991,1756021413624,2406.49,0.00029547,30]
[381085993,1756021527499,283.17811776,0.00020763,2]
[381085994,1756021527574,247.78085314,0.0002249,2]
[381085999,1756021630561,-1107.61209553,0.00025204,2]
[381086011,1756021832479,-3716.38790447,0.00025204,2]
[381086013,1756021832489,-1200.0,0.00025999,2]
[381086015,1756021832499,-300.0,0.00025999,2]
[381086017,1756021832508,-300.0,0.00025999,2]
[381086019,1756021832517,-300.37,0.00026,2]
[381086021,1756021832526,-5078.0,0.00026,10]
[381086023,1756021832535,-761.0,0.00028137,2]
[381086025,1756021832545,-420.0,0.00028137,2]
[381086027,1756021832554,-3608.45853113,0.00029,120]
[381086087,1756021838302,-199.0,0.000289,120]
[381086088,1756021838312,-1217.32791025,0.00029,120]
[381086089,1756021838342,-13525.72761565,0.00029,120]
[381086090,1756021838351,-189.8174951,0.00030142,2]
[381086091,1756021838361,-549.0,0.0003045,2]
[381086092,1756021838370,-285.74900478,0.0003045,2]
[381086093,1756021838380,-375.55078601,0.00032672,2]
[381086094,1756021838390,-1126.94285256,0.00032889,2]
[381086095,1756021838400,-1112.43421048,0.000329,2]
[381086096,1756021838411,-4001.57,0.000329,120]
[381086097,1756021838420,-231.5978706,0.00032914,2]
[381086098,1756021838429,-500.0,0.00032973,5]
[381086099,1756021838439,-500.0,0.00032973,5]
[381086100,1756021838448,-500.0,0.00032973,5]
[381086101,1756021838457,-502.5053185,0.00032973,5]
[381086102,1756021838466,-500.99427933,0.00032973,5]
[381086103,1756021838475,-502.28067038,0.00032973,5]
[381086104,1756021838486,-500.0,0.00032973,5]
[381086105,1756021838496,-500.0,0.00032973,5]
[381086106,1756021838506,-500.0,0.00032973,5]
[381086107,1756021838515,-502.89963623,0.00032973,5]
[381086108,1756021838525,-500.0,0.00032973,5]
[381086109,1756021838535,-466.30128157,0.00032973,5]
[381086110,1756021838543,-501.30343873,0.00032973,5]
[381086111,1756021838553,-500.0,0.00032973,5]
[381086112,1756021838562,-500.0,0.00032973,5]
[381086113,1756021838571,-502.00977814,0.00032973,5]
[381086114,1756021838580,-500.0,0.00032973,5]
[381086115,1756021838589,-504.3291942,0.00032973,5]
[381086116,1756021838598,-500.0,0.00032973,5]
[381086117,1756021838607,-271.73783501,0.00032989,7]
[381086118,1756021838617,-160.0,0.00032989,7]
[381086119,1756021838626,-232.42214577,0.00032989,7]
[381086120,1756021838635,-844.67759735,0.00032989,7]
[381086121,1756021838644,-160.0,0.00032989,7]
[381086122,1756021838653,-1000.0285716,0.00032989,2]
[381086123,1756021838662,-513.4921152,0.00032989,2]
[381086124,1756021838672,-190253.586044,0.0003299,2]
[381086125,1756021838681,-200.0,0.0003299,10]
[381086126,1756021838690,-200.0,0.0003299,10]
[381086127,1756021838699,-208.238992,0.0003299,10]
[381086128,1756021838708,-573814.54998,0.00033,10]
[381086129,1756021838717,-8804.13,0.00033,14]
[381086130,1756021838726,-496.5,0.00033,14]
[381086131,1756021838736,-196.2,0.00033,7]
[381086132,1756021838745,-529.17068775,0.00033,10]
[381086133,1756021838754,-417.15472785,0.00033,10]
[381086134,1756021838763,-232.42214577,0.00033,10]
[381086135,1756021838772,-844.67759735,0.00033,10]
[381086136,1756021838781,-1000.0,0.00033521,5]
[381086137,1756021838790,-1000.0,0.00033521,5]
[381086138,1756021838799,-500.0,0.00033521,5]
[381086139,1756021838809,-500.0,0.00033521,5]
[381086140,1756021838818,-500.0,0.00033521,5]
[381086141,1756021838827,-445.06481498,0.00033521,5]
[381086142,1756021838836,-1000.0,0.00033521,5]
[381086143,1756021838846,-250.0,0.0003369,2]
[381086144,1756021838855,-500.0,0.00034068,5]
[381086145,1756021838865,-512.13917913,0.00034068,5]
[381086146,1756021838874,-500.0,0.00034068,5]
[381086147,1756021838883,-1112.43421047,0.00034313,2]
[381086148,1756021838892,-611.58,0.0003435,3]
[381086149,1756021838902,-500.0,0.0003448,2]
[381086150,1756021838911,-151.0,0.0003448,2]
[381086151,1756021838921,-151.0,0.0003448,2]
[381086152,1756021838930,-151.0,0.0003448,2]
[381086153,1756021838939,-500.0,0.00034754,2]
[381086154,1756021838948,-200.00135488,0.00034754,2]
[381086155,1756021838957,-151.0,0.00034754,2]
[381086156,1756021838967,-189.8174951,0.00034761,2]
[381086157,1756021838976,-500.0,0.00035028,2]
[381086158,1756021838985,-198.0,0.00035028,2]
[381086159,1756021838994,-500.0,0.00035302,2]
[381086160,1756021839004,-403.0,0.00035576,2]
[381086161,1756021839013,-1112.43421047,0.00035726,2]
[381086162,1756021839022,-1126.94285253,0.00035847,2]
[381086163,1756021839031,-290.133306,0.00036467,2]
[381086164,1756021839041,-925.46509091,0.00036538,2]
[381086165,1756021839050,-1500.7009409,0.00036903,2]
[381086166,1756021839060,-1112.43421047,0.00037139,2]
[381086167,1756021839070,-168.0,0.00038075,2]
[381086168,1756021839079,-5000.0,0.000382,120]
[381086169,1756021839089,-973.0,0.00038273,2]
[381086170,1756021839098,-176.014,0.00038273,2]
[381086171,1756021839107,-168.0,0.00038453,2]
[381086172,1756021839116,-193.1,0.00038542,52]
[381086173,1756021839126,-1112.43421047,0.00038552,2]
[381086174,1756021839135,-3031.98282206,0.00038553,10]
[381086175,1756021839144,-196.2,0.000386,7]
[381086176,1756021839153,-215.99145658,0.000386,2]
[381086177,1756021839163,-160.0,0.00038609,2]
[381086178,1756021839172,-15854.4655037,0.00038623,3]
[381086179,1756021839181,-160.0,0.00038623,3]
[381086180,1756021839190,-232.42214577,0.00038623,3]
[381086181,1756021839199,-844.67759735,0.00038623,3]
[381086182,1756021839209,-160.0,0.00038623,3]
[381086183,1756021839218,-160.0,0.0003864,2]
[381086184,1756021839228,-160.0,0.0003864,2]
[381086185,1756021839237,-1324.45,0.00038642,120]
[381086186,1756021839245,-232.42214577,0.00038642,120]
[381086187,1756021839254,-844.67759735,0.00038642,120]
[381086188,1756021839264,-15854.4655037,0.00038642,3]
[381086189,1756021839273,-217.07852671,0.00038647,2]
[381086190,1756021839282,-151.0,0.00038652,30]
[381086191,1756021839291,-151.0,0.00038652,30]
[381086192,1756021839301,-301.592431,0.00038652,30]
[381086193,1756021839310,-151.0,0.00038652,30]
[381086194,1756021839319,-151.0,0.00038652,30]
[381086195,1756021839328,-151.446544,0.00038652,30]
[381086196,1756021839341,-172.963037,0.00038652,30]
[381086197,1756021839351,-172.963037,0.00038652,30]
[381086198,1756021839360,-172.963037,0.00038652,30]
[381086199,1756021839369,-172.963037,0.00038652,30]
[381086200,1756021839380,-151.0,0.00038652,30]
[381086201,1756021839390,-151.0,0.00038652,30]
[381086202,1756021839400,-176.218917,0.00038652,30]
[381086203,1756021839410,-151.0,0.00038652,30]
[381086204,1756021839420,-151.0,0.00038652,30]
[381086205,1756021839429,-151.0,0.00038652,30]
[381086206,1756021839439,-151.0,0.00038652,30]
[381086207,1756021839448,-151.0,0.00038652,30]
[381086208,1756021839457,-278.960996,0.00038652,30]
[381086209,1756021839466,-151.0,0.00038652,30]
[381086210,1756021839475,-278.960996,0.00038652,30]
[381086211,1756021839484,-151.0,0.00038652,30]
[381086212,1756021839494,-151.0,0.00038652,30]
[381086213,1756021839503,-278.960996,0.00038652,30]
[381086231,1756021839718,-151.0,0.00038652,30]
[381086233,1756021839728,-278.960996,0.00038652,30]
[381086235,1756021839738,-151.0,0.00038652,30]
[381086238,1756021839748,-151.0,0.00038652,30]
[381086241,1756021839757,-151.0,0.00038652,30]
[381086243,1756021839767,-151.0,0.00038652,30]
[381086245,1756021839776,-151.0,0.00038652,30]
[381086247,1756021839786,-151.0,0.00038652,30]
[381086249,1756021839795,-151.0,0.00038652,30]
[381086251,1756021839804,-151.0,0.00038652,30]
[381086253,1756021839813,-151.0,0.00038652,30]
[381086255,1756021839832,-227.013602,0.00038652,30]
[381086256,1756021839843,-227.013602,0.00038652,30]
[381086257,1756021839854,-12698.53451425,0.00038652,30]
[381086258,1756021839864,-227.013602,0.00038652,30]
[381086260,1756021839874,-151.0,0.00038652,30]
[381086262,1756021839884,-227.013602,0.00038652,30]
[381086263,1756021839894,-151.0,0.00038652,30]
[381086264,1756021839903,-151.0,0.00038652,30]
[381086265,1756021839914,-529.81161,0.00038652,30]
[381086266,1756021839924,-529.81161,0.00038652,30]
[381086267,1756021839933,-151.0,0.00038652,30]
[381086268,1756021839943,-151.0,0.00038652,30]
[381086269,1756021839953,-529.81161,0.00038652,30]
[381086271,1756021839963,-239.722521,0.00038652,30]
[381086273,1756021839973,-529.81161,0.00038652,30]
[381086275,1756021839983,-239.722521,0.00038652,30]
[381086277,1756021839993,-239.722521,0.00038652,30]
[381086279,1756021840002,-239.722521,0.00038652,30]
[381086281,1756021840012,-151.0,0.00038652,30]
[381086283,1756021840023,-277.964927,0.00038652,30]
[381086285,1756021840033,-277.964927,0.00038652,30]
[381086287,1756021840043,-234.387578,0.00038652,14]
[381086289,1756021840054,-277.964927,0.00038652,30]
[381086291,1756021840063,-277.964927,0.00038652,30]
[381086293,1756021840074,-151.161939,0.00038652,30]
[381086295,1756021840084,-1462.681965,0.00038652,30]
[381086297,1756021840093,-1462.681965,0.00038652,30]
[381086299,1756021840103,-276.80794,0.00038652,30]
[381086301,1756021840113,-1462.681965,0.00038652,30]
[381086303,1756021840123,-276.80794,0.00038652,30]
[381086305,1756021840133,-1462.681965,0.00038652,30]
[381086307,1756021840143,-276.80794,0.00038652,30]
[381086309,1756021840153,-276.80794,0.00038652,30]
[381086311,1756021840163,-167.485033,0.00038652,30]
[381086313,1756021840173,-151.0,0.00038652,30]
[381086315,1756021840183,-151.0,0.00038652,30]
[381086317,1756021840192,-151.0,0.00038652,30]
[381086319,1756021840202,-151.0,0.00038652,30]
[381086321,1756021840212,-151.0,0.00038652,30]
[381086324,1756021840224,-151.0,0.00038652,30]
[381086326,1756021840233,-151.0,0.00038652,30]
[381086328,1756021840243,-151.0,0.00038652,30]
[381086330,1756021840253,-151.0,0.00038652,30]
[381086332,1756021840263,-151.0,0.00038652,30]
[381086334,1756021840274,-151.0,0.00038652,30]
[381086336,1756021840284,-151.0,0.00038652,30]
[381086338,1756021840296,-151.0,0.00038652,30]
[381086340,1756021840306,-151.0,0.00038652,30]
[381086342,1756021840320,-151.0,0.00038652,30]
[381086344,1756021840331,-202.644051,0.00038652,30]
[381086346,1756021840343,-202.644051,0.00038652,30]
[381086348,1756021840352,-202.644051,0.00038652,30]
[381086350,1756021840362,-202.644051,0.00038652,30]
[381086352,1756021840372,-417.15472785,0.00038652,30]
[381086354,1756021840382,-151.0,0.00038652,30]
[381086356,1756021840392,-151.0,0.00038652,30]
[381086358,1756021840402,-151.0,0.00038652,30]
[381086360,1756021840413,-418.853593,0.00038652,30]
[381086361,1756021840424,-151.0,0.00038652,30]
[381086362,1756021840434,-418.853593,0.00038652,30]
[381086363,1756021840444,-151.0,0.00038652,30]
[381086364,1756021840454,-418.853593,0.00038652,30]
[381086365,1756021840464,-151.0,0.00038652,30]
[381086366,1756021840474,-418.853593,0.00038652,30]
[381086367,1756021840484,-151.0,0.00038652,30]
[381086368,1756021840495,-151.0,0.00038652,30]
[381086369,1756021840505,-430.475333,0.00038652,30]
[381086370,1756021840514,-430.475333,0.00038652,30]
[381086371,1756021840524,-430.475333,0.00038652,30]
[381086372,1756021840535,-430.475333,0.00038652,30]
[381086373,1756021840546,-203.15951,0.00038652,15]
[381086374,1756021840556,-203.15951,0.00038652,15]
[381086375,1756021840566,-232.42214577,0.00038652,30]
[381086376,1756021840576,-203.15951,0.00038652,15]
[381086377,1756021840585,-203.15951,0.00038652,15]
[381086378,1756021840595,-844.67759735,0.00038652,30]
[381086379,1756021840604,-151.0,0.00038652,30]
[381086380,1756021840613,-151.0,0.00038652,30]
[381086381,1756021840622,-151.0,0.00038652,30]
[381086382,1756021840631,-151.0,0.00038652,30]
[381086383,1756021840640,-246.353431,0.00038652,30]
[381086384,1756021840649,-151.0,0.00038652,30]
[381086385,1756021840659,-1263.790895,0.00038652,30]
[381086386,1756021840668,-395.00632,0.00038652,30]
[381086387,1756021840678,-276.269573,0.00038652,30]
[381086388,1756021840687,-1263.790895,0.00038652,30]
[381086389,1756021840697,-395.00632,0.00038652,30]
[381086390,1756021840707,-276.269573,0.00038652,30]
[381086391,1756021840716,-151.0,0.00038652,30]
[381086392,1756021840726,-1263.790895,0.00038652,30]
[381086393,1756021840735,-395.00632,0.00038652,30]
[381086394,1756021840744,-276.269573,0.00038652,30]
[381086395,1756021840754,-1263.790895,0.00038652,30]
[381086396,1756021840764,-395.00632,0.00038652,30]
[381086397,1756021840774,-276.269573,0.00038652,30]
[381086398,1756021840783,-370000.0,0.00038652,2]
[381086399,1756021840792,-176.11663669,0.00038673,5]
[381086400,1756021840802,-500.0,0.00038673,5]
[381086401,1756021840812,-500.0,0.00038673,5]
[381086402,1756021840821,-500.0,0.00038673,5]
[381086403,1756021840831,-161.38519004,0.00038673,5]
[381086404,1756021840841,-500.0,0.00038673,5]
[381086405,1756021840851,-501.36250263,0.00038673,5]
[381086406,1756021840860,-500.0,0.00038673,5]
[381086407,1756021840870,-500.0,0.00038673,5]
[381086408,1756021840879,-500.0,0.00038673,5]
[381086409,1756021840889,-500.0,0.00038673,5]
[381086410,1756021840899,-503.1660041,0.00038673,5]
[381086411,1756021840909,-500.0,0.00038673,5]
[381086412,1756021840919,-500.0,0.00038673,5]
[381086413,1756021840928,-500.0,0.00038673,5]
[381086414,1756021840938,-502.59252625,0.00038673,5]
[381086415,1756021840946,-500.57817815,0.00038673,5]
[381086416,1756021840955,-500.0,0.00038773,5]
[381086417,1756021840964,-500.0,0.00038773,5]
[381086418,1756021840974,-500.0,0.00038773,2]
[381086419,1756021840983,-496.5,0.000388,14]
[381086420,1756021840991,-1126.94285253,0.00038806,2]
[381086421,1756021841000,-1000.0,0.00038861,15]
[381086422,1756021841010,-8804.13,0.000389,14]
[381086423,1756021841019,-168.0,0.00038923,2]
[381086424,1756021841027,-359.38904221,0.0003898,21]
[381086425,1756021841036,-5000.0,0.000392,120]
[381086426,1756021841045,-1000.0,0.00039221,5]
[381086427,1756021841054,-1000.0,0.00039221,5]
[381086428,1756021841062,-1001.1829709,0.00039221,5]
[381086429,1756021841071,-1000.71858137,0.00039221,5]
[381086430,1756021841081,-502.0536285,0.00039221,5]
[381086431,1756021841091,-1000.0,0.00039221,5]
[381086432,1756021841101,-501.12102435,0.00039221,5]
[381086433,1756021841113,-597.03,0.000395,120]
[381086434,1756021841123,-151.0,0.0003955,2]
[381086435,1756021841132,-300.0,0.0003955,2]
[381086436,1756021841142,-300.0,0.0003955,2]
[381086437,1756021841151,-151.0,0.0003955,2]
[381086438,1756021841161,-151.0,0.0003955,2]
[381086439,1756021841170,-300.0,0.0003955,2]
[381086440,1756021841180,-151.0,0.0003955,2]
[381086441,1756021841189,-151.0,0.0003955,2]
[381086442,1756021841199,-250.0,0.0003955,2]
[381086443,1756021841209,-323.21924273,0.0003955,2]
[381086444,1756021841219,-151.0,0.0003955,2]
[381086445,1756021841229,-151.0,0.0003955,2]
[381086446,1756021841238,-250.0,0.0003955,2]
[381086447,1756021841247,-250.0,0.0003955,2]
[381086448,1756021841258,-151.0,0.0003955,2]
[381086449,1756021841272,-151.0,0.0003955,2]
[381086450,1756021841282,-2524.82941417,0.0003955,2]
[381086451,1756021841291,-250.0,0.0003955,2]
[381086452,1756021841301,-151.0,0.0003955,2]
[381086453,1756021841310,-151.0,0.0003955,2]
[381086454,1756021841320,-300.0,0.0003955,2]
[381086455,1756021841334,-151.0,0.0003955,2]
[381086456,1756021841345,-151.0,0.0003955,2]
[381086457,1756021841355,-300.0,0.0003955,2]
[381086458,1756021841364,-250.0,0.0003955,2]
[381086459,1756021841375,-151.0,0.0003955,2]
[381086460,1756021841384,-151.0,0.0003955,2]
[381086461,1756021841394,-300.0,0.0003955,2]
[381086462,1756021841403,-151.0,0.0003955,2]
[381086463,1756021841413,-151.0,0.0003955,2]
[381086464,1756021841423,-300.0,0.0003955,2]
[381086465,1756021841432,-201.93286099,0.0003955,2]
[381086466,1756021841441,-151.0,0.0003955,2]
[381086467,1756021841451,-300.0,0.0003955,2]
[381086468,1756021841461,-151.0,0.0003955,2]
[381086469,1756021841471,-151.0,0.0003955,2]
[381086470,1756021841480,-151.0,0.0003955,2]
[381086471,1756021841490,-300.0,0.0003955,2]
[381086472,1756021841499,-151.0,0.0003955,2]
[381086473,1756021841508,-151.0,0.0003955,2]
[381086474,1756021841518,-151.0,0.0003955,2]
[381086475,1756021841527,-300.0,0.0003955,2]
[381086476,1756021841537,-151.0,0.0003955,2]
[381086477,1756021841546,-300.0,0.0003955,2]
[381086478,1756021841555,-300.0,0.0003955,2]
[381086479,1756021841565,-151.0,0.0003955,2]
[381086480,1756021841574,-300.0,0.0003955,2]
[381086481,1756021841583,-291.24052599,0.0003955,2]
[381086482,1756021841593,-324.49593174,0.0003955,2]
[381086483,1756021841602,-21396.85944216,0.0003955,2]
[381086484,1756021841612,-500.0,0.0003955,2]
[381086485,1756021841621,-496.0,0.0003955,120]
[381086486,1756021841631,-151.0,0.0003955,2]
[381086487,1756021841640,-2618.2481025,0.00039605,2]
[381086488,1756021841650,-2715.12328229,0.0003966,2]
[381086489,1756021841659,-2815.58284374,0.00039715,2]
[381086490,1756021841668,-647.66914228,0.0003973,8]
[381086491,1756021841677,-2919.75940895,0.0003977,2]
[381086492,1756021841687,-199.0,0.00039789,120]
[381086493,1756021841696,-168.0,0.00039819,2]
[381086494,1756021841706,-247.38855246,0.00039824,2]
[381086495,1756021841716,-3027.79050709,0.00039825,2]
[381086496,1756021841725,-401.39721443,0.00039877,120]
[381086497,1756021841735,-3139.81875585,0.0003988,2]
[381086498,1756021841745,-199.0,0.000399,30]
[381086499,1756021841754,-293.45044853,0.000399,120]
[381086500,1756021841763,-4485.4538796,0.000399,2]
[381086501,1756021841773,-3255.99204981,0.00039935,2]
[381086502,1756021841783,-500.0,0.00039973,5]
[381086503,1756021841792,-500.0,0.00039973,5]
[381086504,1756021841801,-500.0,0.00039973,5]
[381086505,1756021841810,-500.0,0.00039973,5]
[381086506,1756021841819,-500.0,0.00039973,5]
[381086507,1756021841828,-500.0,0.00039973,2]
[381086508,1756021841837,-500.0,0.00039973,5]
[381086509,1756021841846,-500.0,0.00039973,5]
[381086510,1756021841856,-504.77465991,0.00039973,5]
[381086511,1756021841865,-502.98345367,0.00039973,5]
[381086512,1756021841874,-500.0,0.00039973,5]
[381086513,1756021841883,-500.0,0.00039973,5]
[381086514,1756021841895,-500.0,0.00039973,5]
[381086515,1756021841911,-500.0,0.00039973,5]
[381086516,1756021841920,-151.0,0.00039973,30]
[381086517,1756021841930,-151.0,0.00039973,30]
[381086518,1756021841939,-151.0,0.00039973,30]
[381086519,1756021841948,-151.0,0.00039973,30]
[381086520,1756021841957,-151.0,0.00039973,30]
[381086521,1756021841967,-151.0,0.00039973,30]
[381086522,1756021841977,-151.0,0.00039973,30]
[381086523,1756021841986,-151.0,0.00039973,30]
[381086524,1756021841995,-151.0,0.00039973,30]
[381086525,1756021842004,-151.0,0.00039973,30]
[381086526,1756021842014,-151.0,0.00039973,30]
[381086527,1756021842023,-151.0,0.00039973,30]